Cogmind - Beta 16.1 @@@ ROGUE MODE // 2026.04.03 @ 11:04:59 Player: Rainbow Dash Result: Destroyed by IO-WBC(R) with Subdweller Machine Gun Performance ------------- Evolutions (0) 0 Regions Visited (2) 400 Robots Destroyed (21) 105 Value Destroyed (579) 579 Prototype IDs (17) 340 Alien Tech Used (0) 0 Bonus (0) 0 TOTAL SCORE: 1424 Bonus ------- None Cogmind --------- Core Integrity 0/250 Matter 200/300 Energy 125/125 System Corruption 0% Temperature Cool (0) Movement Treading (160) Location -10/Subcaves Parts ------- > --- POWER (1+1) ------ Light Ion Engine > --- PROPULSION (2+1) - Light Treads Light Treads > --- UTILITY (2+1) ---- Large Storage Unit Rainbow Chip > --- WEAPON (2+1) ----- Barrage Gun Barrage Gun > --- INVENTORY (15) --- Subdweller Power Source Light Treads Light Treads Subdweller Monowheel Improved Heat Sink Core Shielding Core Shielding Medium Laser Small Laser Autogun Autogun Subdweller Shrapnel Launcher Datajack Hammer Peak State ------------ > --- POWER ------------ Light Ion Engine > --- PROPULSION ------- Light Treads Light Treads > --- UTILITY ---------- Large Storage Unit Rainbow Chip > --- WEAPON ----------- Barrage Gun Barrage Gun > --- INVENTORY -------- Subdweller Power Source Light Treads Light Treads Subdweller Monowheel Improved Heat Sink Core Shielding Core Shielding Medium Laser Small Laser Autogun Autogun Subdweller Shrapnel Launcher Datajack Hammer [Rating: 25] Favorites ----------- Power Ion Engine Engine Ion Engine Propulsion Light Treads Treads Light Treads Utility Large Storage Unit Device Seismic Detector Storage Large Storage Unit Processor Rainbow Chip Protection Core Shielding Weapon Autogun Energy Gun Medium Laser Ballistic Gun Autogun Launcher Subdweller Shrapnel Launcher Impact Weapon Hammer Special Melee Weapon Datajack Build | -11 -10 -10 ------- Run | Yrd Mat Sub Slots Evolved . | . . . Power . | . . . Propulsion . | . . . Utility . | . . . Weapon . | . . . Parts Attached 24 | 7 7 10 Power 2 | 1 . 1 Engine 2 | 1 . 1 Core . | . . . Reactor . | . . . Propulsion 4 | 2 . 2 Treads 4 | 2 . 2 Leg . | . . . Wheel . | . . . Hover . | . . . Flight . | . . . Utility 6 | 2 3 1 Device 2 | 1 1 . Storage 2 | 1 1 . Processor 1 | . . 1 Hackware . | . . . Protection 1 | . 1 . Artifact . | . . . Weapon 12 | 2 4 6 Energy Gun 2 | 1 . 1 Energy Cannon . | . . . Ballistic Gun 7 | 1 3 3 Ballistic Cannon . | . . . Launcher 1 | . . 1 Special Weapon . | . . . Impact Weapon 1 | . 1 . Slashing Weapon . | . . . Piercing Weapon . | . . . Special Melee Weapon 1 | . . 1 Unidentified Prototypes . | . . . Parts Lost 5 | . 1 4 Power 1 | . . 1 Propulsion 2 | . . 2 Utility 1 | . 1 . Weapon 1 | . . 1 Highest Loss Streak 1 | . 1 1 To Critical Strikes . | . . . Average Backups 13 | 3 12 14 Power 1 | . 1 . Propulsion 3 | 1 3 4 Utility 2 | . 2 3 Weapon 4 | . 5 4 Tool/Special . | . . . Unused Backups 10 | . 3 7 Power 2 | . 1 1 Propulsion 5 | . 2 3 Utility 3 | . . 3 Weapon . | . . . Tool/Special . | . . . Average Slot Usage (%) 97 | . 98 95 Engine 13 | . 14 13 Treads 27 | . 27 26 Device 2 | . 5 . Storage 13 | . 14 13 Protection 9 | . 7 12 Energy Gun 1 | . . 3 Ballistic Gun 22 | . 26 18 Impact Weapon 1 | . 1 2 Peak Build Rating 25 | 7 10 25 Average Rating 10 | 5 9 12 On Entrance 5 | . 7 10 Avg Prop Armor Cover (%) . | . . . Naked Turns . | . . . Heaviest Build 34 | 13 32 34 Greatest Support 40 | 40 40 40 Greatest Overweight (x) 3 | 3 . 1 Average Overweight (x) . | . . . Largest Inventory Capacity 15 | 8 15 15 Average Capacity 14 | 7 14 15 Most Carried 15 | 4 15 15 Average Carried 13 | 3 12 14 Final Capacity 15 | 8 15 15 Final Carried 15 | 4 15 14 Class Distribution -------------------- 100% | Mutant Dominant Class ---------------- Mutant | -10/Materials Mutant | -10/Subcaves Resources | -11 -10 -10 ----------- Run | Yrd Mat Sub Matter Collected 1074 | 235 463 376 Remotely . | . . . Salvage Created 691 | 28 371 292 Parts 51 | 7 25 19 Haulers Intercepted 1 | . 1 . Recyclers Shooed 1 | 1 . . Parts Field Recycled . | . . . Retrieved Matter . | . . . Parts Self-Destructed 9 | . . 9 Prevented . | . . . Parts Restored . | . . . Kills | -11 -10 -10 ------- Run | Yrd Mat Sub Combat Hostiles Destroyed 16 | . 9 7 Guns 16 | . 9 7 Classes Destroyed 6 | 1 4 1 Tunneler 3 | 2 1 . Hauler 1 | . 1 . Watcher 1 | . 1 . Swarmer 3 | . 3 . Grunt 6 | . 6 . Subdweller 7 | . . 7 Best Kill Streak 3 | 1 3 2 Combat Bots Only 2 | . 2 2 Max Kills in Single Turn 2 | 1 2 1 Gunslinging 1 | . 1 . Exploded . | . . . Melee . | . . . Uniques/NPCs Destroyed . | . . . Combat | -11 -10 -10 -------- Run | Yrd Mat Sub Hostile Shots Fired 89 | . 39 50 Missed 21 | . 13 8 Hits 68 | . 26 42 Projectile 68 | . 26 42 AOE 4 | . . 4 Critical Strikes 2 | . . 2 Actively Blocked 1 | . . 1 Damage Taken 1388 | . 344 1044 Core 273 | . 55 218 Absorbed by Shields . | . . . Redirected to Shielding 35 | . . 35 Regen/Repaired (Parts) 52 | . 52 . Core Remaining (%) 100 | 100 . . Volleys Fired 90 | 7 42 41 Largest 2 | 2 2 2 Hottest 73 | 60 46 73 Shots Fired 170 | 13 84 73 Gun 168 | 13 84 71 Cannon . | . . . Launcher 2 | . . 2 Special . | . . . Kinetic 157 | 7 84 66 Thermal 13 | 6 . 7 Explosive . | . . . Electromagnetic . | . . . Robot Hit Streak 29 | 5 6 29 Robot Miss Streak 4 | 3 4 3 Penetration Max . | . . . Secondary Targets 1 | . 1 . Max Gunslinging Chain 1 | . 1 . Shots Hit Robots 106 | 7 44 55 Core Hits 36 | 3 18 15 Critical Kills . | . . . Critical Parts Destroyed . | . . . Critical Strikes 2 | . . 2 Destroy 2 | . . 2 Melee Attacks 20 | . 2 18 Impact 18 | . 2 16 Slashing . | . . . Piercing . | . . . Sneak Attacks 3 | . 1 2 Combat Hostiles . | . . . Follow-up Attacks . | . . . Damage Inflicted 1689 | 69 740 880 Guns 1614 | 69 665 880 Cannons . | . . . Explosions . | . . . Melee 75 | . 75 . Ramming . | . . . Kinetic 1523 | 38 665 820 Thermal 91 | 31 . 60 Explosive . | . . . Electromagnetic . | . . . Impact 75 | . 75 . Slashing . | . . . Piercing . | . . . Highest Corruption . | . . . Average Corruption . | . . . Corruption Purged . | . . . Corruption Blocked . | . . . Overload Shots . | . . . Overflow Damage 35 | . 35 . Projectiles . | . . . Explosions . | . . . Melee 35 | . 35 . Knockbacks . | . . . Impact . | . . . Kinetic . | . . . Secondary . | . . . Self-Inflicted Damage . | . . . Shots . | . . . Rammed . | . . . Targets Rammed . | . . . Kicked . | . . . Crushed . | . . . Highest Temperature 40 | 20 40 2 Average Temperature 12 | 14 12 2 Received Heat Transfer 243 | . 183 60 Siege Activations . | . . . Martial Activations . | . . . Shielding Activations . | . . . Robots Disrupted . | . . . Combat Hostiles . | . . . Robots Corrupted 1 | . 1 . Combat Hostiles . | . . . Parts Fried 1 | . 1 . Impact Corruptions 2 | . 2 . Robots Melted . | . . . Combat Hostiles . | . . . Parts Melted 2 | . . 2 Heat Transferred 260 | 75 . 185 Parts Sabotaged . | . . . Parts Stolen . | . . . Parts Stripped . | . . . Power Chain Reactions . | . . . Alert | -11 -10 -10 ------- Run | Yrd Mat Sub Maximum Alert Level . | . . . Low Security (%) 100 | 100 100 . Level 1 . | . . . Level 2 . | . . . Level 3 . | . . . Level 4 . | . . . Level 5 . | . . . High Security . | . . . Max Security . | . . . Peak Influence 119 | 5 119 . Initial . | . . . Average 29 | . 32 . Influence Increases 319 | 10 309 . Destroy 0b10 Robot/C 180 | . 180 . Destroy 0b10 Robot/NC 25 | 10 15 . Destroy Leader 34 | . 34 . Successful Hack 29 | . 29 . Destroy Structure 6 | . 6 . Lose Combat Pursuer 45 | . 45 . Influence Decreases 319 | 10 309 . Time Decay 309 | 10 299 . Lost Part 10 | . 10 . Squads Dispatched 1 | . 1 . Investigation . | . . . Extermination . | . . . Reinforcement 1 | . 1 . Assault . | . . . Garrison . | . . . Intercept . | . . . Searches Triggered . | . . . Construction Impeded . | . . . Haulers Reinforced . | . . . Active Scanning Responses . | . . . Cargo Convoy Interrupts . | . . . Stealth | -11 -10 -10 --------- Run | Yrd Mat Sub Distress Signals 2 | . 2 . Communications Jammed . | . . . Distress Signals . | . . . Times Spotted 26 | . 18 8 Peak Tracking Total 4 | . 4 2 Tactical Retreats 3 | . 3 . Traps | -11 -10 -10 ------- Run | Yrd Mat Sub Traps Triggered 1 | . . 1 Indirectly . | . . . Trap Hack Attempts . | . . . Triggered . | . . . Disarmed . | . . . Reprogrammed . | . . . Reused . | . . . Traps Extracted . | . . . Installed . | . . . Triggered . | . . . Machines | -11 -10 -10 ---------- Run | Yrd Mat Sub Machines Disabled 1 | . . 1 Max in Single Turn 1 | . . 1 Machines Repaired . | . . . Machines Dismantled . | . . . Machines Sabotaged . | . . . Overloaded Fab Kills . | . . . Hacking | -11 -10 -10 --------- Run | Yrd Mat Sub Machines Accessed 12 | . 10 2 Terminals 7 | . 7 . Fabricators . | . . . Repair Stations 1 | . 1 . Recycling Units 2 | . 2 . Scanalyzers . | . . . Garrison Access . | . . . Total Hacks 40 | . 36 4 Successful 25 | . 21 4 Failed 15 | . 15 . Catastrophic . | . . . Database Lockouts . | . . . Manual 22 | . 22 . Terminals 25 | . 25 . Fabricators . | . . . Repair Stations 7 | . 7 . Recycling Units 4 | . 4 . Scanalyzers . | . . . Garrison Access . | . . . Terminal Hacks 11 | . 7 4 Record 3 | . . 3 Prototype ID Bank 2 | . 2 . Terminal Index 1 | . 1 . Locate Traps 3 | . 3 . Hauler Manifests 1 | . 1 . Proto ID Catalog 1 | . . 1 Fabricator Hacks . | . . . Repair Station Hacks 3 | . 3 . Scan Component 2 | . 2 . Repair 1 | . 1 . Recycling Unit Hacks . | . . . Scanalyzer . | . . . Garrison Access Hacks . | . . . Unauthorized Hacks 11 | . 11 . Terminals 8 | . 8 . Track 2 | . 2 . Botnet 1 | . 1 . Skim 5 | . 5 . Fabricators . | . . . Repair Stations . | . . . Recycling Units 3 | . 3 . Recyclers 1 | . 1 . Mask 2 | . 2 . Scanalyzers . | . . . Garrison Access . | . . . Data Cores Recovered . | . . . Used . | . . . Hacking Detections 9 | . 9 . Full Trace Events . | . . . Feedback Events . | . . . Feedback Blocked . | . . . Robot Schematics Acquired . | . . . Robots Built . | . . . Authchips . | . . . Time . | . . . Total Robot Build Rating . | . . . Part Schematics Acquired . | . . . Parts Built . | . . . Authchips . | . . . Time . | . . . Total Part Build Rating . | . . . Part Studies Acquired . | . . . Parts Repaired 1 | . 1 . Time 26 | . 26 . Parts Recycled . | . . . Recycled Matter . | . . . Retrieved Matter . | . . . Retrieved Components . | . . . Parts Scanalyzed . | . . . Part Schematics Acquired . | . . . Parts Damaged . | . . . Bothacking | -11 -10 -10 ------------ Run | Yrd Mat Sub Used RIF Installer . | . . . Robots Hacked 1 | . . 1 Non-combat 1 | . . 1 Combat . | . . . Robot Hacks Applied 1 | . . 1 parse_system 1 | . . 1 Relay Couplers Released . | . . . Fabnet Peak Effective % . | . . . Robots Rewired . | . . . Allies Hacked . | . . . Hacks Repelled . | . . . Allies | -11 -10 -10 -------- Run | Yrd Mat Sub Total Allies . | . . . Largest Group . | . . . Highest-Rated Group . | . . . Highest-Rated Ally . | . . . Total Orders . | . . . Ally Attacks . | . . . Total Damage . | . . . Kills . | . . . Allies Corrupted . | . . . Allies Melted . | . . . Intel | -11 -10 -10 ------- Run | Yrd Mat Sub Active Infowar (turns) 415 | 13 402 . Seismic 415 | 13 402 . Robot Analysis Total . | . . . Derelict Logs Recovered . | . . . Drone Launches . | . . . Drone Recoveries . | . . . Exploration | -11 -10 -10 ------------- Run | Yrd Mat Sub Turns Passed 2851 | 145 1346 1360 Spaces Moved 1507 | 72 721 714 Core 19 | 19 . . Treads 1488 | 53 721 714 Legs . | . . . Wheels . | . . . Hover . | . . . Flight . | . . . Fastest Speed 50 | 50 160 160 Average Speed 159 | 156 160 160 Slowest Speed 240 | 200 160 240 Overloaded Moves . | . . . Propulsion Burnouts . | . . . Robots Hopped . | . . . Potential Cave-ins . | . . . Cave-ins Triggered . | . . . Exploration Rate (%) 48 | 4 98 42 Regions Visited 2 Branch Regions 1 Pre-discovered Areas 4 | . 3 1 Known Exits Taken 1 | . 1 . Unknown Exits Taken 1 | 1 . . Scrap Searched 2 | . . 2 Spaces Dug 21 | . 1 20 Terrain Destroyed 40 | . 1 39 Melee 4 | . 1 3 Projectile 1 | . . 1 AOE 35 | . . 35 Terrain Rammed . | . . . Walls Destroyed . | . . . Machines Disabled . | . . . Actions | -11 -10 -10 --------- Run | Yrd Mat Sub Total 1761 | 89 842 830 Wait 78 | . 50 28 Move 1505 | 71 720 714 Hop . | . . . Pick Up 23 | 4 13 6 Fast Attach 10 | 7 3 . Attach 5 | . 1 4 Detach 1 | . 1 . Swap 21 | . 5 16 Drop 8 | . 5 3 Fire 90 | 7 42 41 Melee 20 | . 2 18 Ram . | . . . Kick . | . . . Crush . | . . . Escape Stasis . | . . . Rewire . | . . . Trap . | . . . Miscellaneous . | . . . Route ------- -11/Scrapyard -10/Materials (discovered 6 exits: *Mat x3 / *Min x2 / *Sub) -10/Subcaves (discovered 1 exit: Mat) History --------- Turn | Location | Event 7 | -11/Scrapyard | Discovered new exit (range 16) 146 | -11/Scrapyard | Entered Materials 310 | -10/Materials | Build established: Mutant 487 | -10/Materials | Discovered new exit (range 6) 694 | -10/Materials | Discovered new exit (range 3) 746 | -10/Materials | Derelicts attacked the area 812 | -10/Materials | Discovered new exit (range 9) 887 | -10/Materials | Discovered new exit (range 16) 941 | -10/Materials | Learned location of Storage (-8) 972 | -10/Materials | Learned Storage security intel 991 | -10/Materials | Learned 4 Recycling zone layouts 1003 | -10/Materials | Identified exit to Materials 1004 | -10/Materials | Identified exit to Subcaves 1004 | -10/Materials | Learned location of 1 exit from Materials 1006 | -10/Materials | Identified exit to Mines 1038 | -10/Materials | Learned 2 Materials zone layouts 1051 | -10/Materials | Repaired Lgt. Treads 1492 | -10/Materials | Entered Subcaves 1493 | -10/Subcaves | Identified exit to Materials 1950 | -10/Subcaves | Visited Clippyterm 1955 | -10/Subcaves | Learned location of Deep Caves (-7) 1955 | -10/Subcaves | Learned Research machine intel 2123 | -10/Subcaves | A swath of the cavern ceiling suddenly collapsed 2291 | -10/Subcaves | Visited 4L-MR0's lab 2313 | -10/Subcaves | Found Rainbow Chip 2612 | -10/Subcaves | Core integrity fell below 50% 2669 | -10/Subcaves | Core integrity fell below 20% 2673 | -10/Subcaves | Attached Rainbow Chip, gained temporary slots: Power, Propulsion, Utility, Weapon 2852 | -10/Subcaves | Destroyed by IO-WBC(R) with Subdweller Machine Gun Last Messages --------------- 02333_ Critical hit (Impale). 02335_ Acquired 10 matter. 02470_ Acquired 20 matter. 02607_ Subatomizers dissect the Sub. Machine Gun. 02613_ Lgt. Treads destroyed. 02651_ 1Q-O9G(R) destroyed. 02654_ Acquired 49 matter. 02670_ Lgt. Treads destroyed. 02673_ Core temporarily expanded with Power slot. 02673_ Core temporarily expanded with Propulsion slot. 02673_ Core temporarily expanded with Utility slot. 02673_ Core temporarily expanded with Weapon slot. 02676_ 60-389(R) destroyed. 02684_ Subatomizers dissect the Sub. Optics. 02694_ Subatomizers dissect the Sub. Optics, destroying it. 02694_ Acquired 40 matter. 02699_ Acquired Sub. Shrapnel Launcher. 02713_ Acquired 23 matter. 02775_ Subatomizers dissect the Disposable Heat Sink. 02826_ IO-WBC(R): "ARGHSUB!" Map ----- +----------------------------------------------------+ | ????????????????????## ##???????????????????? | | ?????????????????????## ##??????????????????? | | ??????????????????????## #??????????????????? | | ???????????????????????##### ###????????????????? | | #??????????????????????????# ##???????????????? | | #?????????????????????????## #???????????????? | | #????????????????????????## #???????????????? | | ????????????????????????## ##???????????????? | | ????????????????????????# #????????????????? | | ????????????????????????# ##????????###?????# | | ????????????????????????# #?????????# ####??# | | ????????????????????????#### #####???#### # #??# | | ???????????????????????????## ## ##?## ###?? | | ????????????????????????????# # ### ## #?? | | ???????????????????????????## [ ##?? | | ???????????????????????????# ## # ! #?? | | ???????????????????????????## # ## ### | | ???????????????????????????# ### | | #????????????????????????####### ## # | | #???????????????????????## #???###### | | ##??????????????????????# #?????#### | | #?????????????????????## #??#### | | #?????????????????????# #??# # | | ##?????????????????????# #??# ## | | #??????????????????????# #??# %% ##### #### | | #???????????????????#####@ #### ####???####??? | | #?????????????????### ;; ;# #####?####???? | | #?????????????????# R ## ## ####? | | #?????????????????# #? | | #?????????????????# #? | | ??????????????????## ; #? | | ???????????????????##; ;## ## ##? | | ????????????????????# ## ### ##?? | | ????????????????????## # # ### ##??? | | ?????????????????????## ## ### #####???? | | ??????????????????????### ####### #?####???????? | | ?????????????????????????#??????#####????????????? | | ?????????????????????????????????????????????????? | | ?????????????????????????????????????????????????? | | ?????????????????????????????????????????????????? | | ?????????????????????????????????????????????????? | | ?????????????????????????????????????????????????? | | ?????????????????????????????????????????????????? | | ?????????????????????????????????????????????????? | | ?????????????????????????????????????????????????? | | ?????????????????????????????????????????????????? | | ?????????????????????????????????????????????????? | | ?????????????????????????????????????????????????? | | ?????????????????????????????????????????????????? | | ?????????????????????????????????????????????????? | +----------------------------------------------------+ Best States ------------- Heat Dissipation 35 Energy Generation 10 Energy Capacity 250 Matter Stores 300 Matter Capacity 300 Sight Range 16 Terrain Scan Density 10 Core Shielding 20 Evasion (%) 40 Recoil Reduction 2 Item Schematics ----------------- None Robot Schematics ------------------ None Fabricated ------------ Nothing Repaired ---------- Lgt. Treads | 62% | -10/Materials Studied --------- None Alien Tech Used ----------------- None Achievements -------------- None Challenges ------------ None Game ------ Seed IonicControlSteel Manual? 0 Play Time 00:28:27 Cumulative 138.9 hours Start 2026.04.03 @ 10:13:01 End 2026.04.03 @ 11:04:59 Sessions 2 Manual Loads 0 Difficulty Rogue Special Mode None Game No. 130 Rogue 85 Adventurer 45 Explorer 0 Win Type - Total 3 Types 2/0/0/1/0/0/0/0/0/0 Lore% 71 Gallery% 58 Achievement% 43 Wizard Run 0 Options --------- Layout 0 ASCII 1 Keyboard 1 Movement Numpad Keybinds 0 Fullscreen 1 Font 24/Smallcaps Map View 76x50 Zoom Use 0% Tactical HUD 1 Map Filters NONE Filters NONE Steam 1 RUN: 0de3b3be-0c33-4933-b8f5-92c4827fdc78